bitfinex-derivatives/quotes_ETHF0:USTF0_20250326
["timestamp","ask_amount","ask_price","bid_price","bid_amount"]
[1742961647000,1.4038,2050.0,2049.7,3.238]
[1742961647207,2.3793,2050.0,2049.7,4.2136]
[1742961647405,2.3793,2050.0,2049.7,0.9756]
[1742961648604,0.97555,2049.9,2049.6,41.78296547]
[1742961648804,1.4071,2049.8,2049.6,41.78296547]
[1742961649003,1.4071,2049.8,2049.6,0.98296547]
[1742961649403,1.4071,2049.8,2049.7,0.97563]
[1742961652610,1.4071,2049.8,2049.7,1.61843]
[1742961655515,1.4071,2049.8,2049.7,0.6428]
[1742961655713,1.4071,2049.8,2049.6,0.00731547]
[1742961655714,4.6149,2049.8,2049.6,0.00731547]
[1742961656023,0.97563,2049.7,2049.6,0.00731547]
[1742961656311,2.96193,2049.7,2049.6,0.00731547]
[1742961658620,3.64503,2049.7,2049.6,0.00731547]
[1742961660811,2.6694,2049.7,2049.6,0.00731547]
[1742961661115,1.9914,2049.7,2049.6,0.98299547]
[1742961661513,1.3083,2049.7,2049.6,0.98299547]
[1742961661816,0.00731547,2050.1,2050.0,0.97549]
[1742961662116,3.247,2051.2,2050.3,2.43832]
[1742961662117,3.2078,2050.9,2050.3,2.43832]
[1742961662317,0.97514,2050.8,2050.5,0.97523]
[1742961662518,2.34244,2050.8,2050.6,0.97519]
[1742961663316,1.3673,2050.8,2050.5,0.97523]
[1742961663515,2.34244,2050.8,2050.6,0.9752]
[1742961663718,2.34244,2050.8,2050.6,0.97516]
[1742961664417,2.34244,2050.8,2050.7,0.97515]
[1742961664418,1.3673,2050.8,2050.7,0.97515]
[1742961665430,2.34243,2050.8,2050.5,1.3261]
[1742961665717,2.34244,2050.8,2050.7,0.97515]
[1742961665919,1.3673,2050.8,2050.7,0.97515]
[1742961666113,2.34241,2050.8,2050.7,0.97515]
[1742961666516,1.3673,2050.8,2050.7,0.97515]
[1742961666925,2.34241,2050.8,2050.7,0.97515]
[1742961667126,1.3673,2050.8,2050.7,0.97515]
[1742961671123,3.21511547,2050.9,2050.8,0.97511]
[1742961671319,0.00731547,2050.9,2050.8,0.97511]
[1742961672020,0.00731547,2050.9,2050.8,3.03911]
[1742961684836,0.97466,2051.8,2051.0,2.43743]
[1742961685040,1.3319,2051.5,2051.2,3.2078]
[1742961685235,1.3319,2051.5,2051.4,0.97482]
[1742961685441,1.3177637,2051.5,2051.4,0.97482]
[1742961685737,1.3177637,2051.5,2051.3,2.27696]
[1742961685940,1.3177637,2051.5,2051.4,0.97482]
[1742961686138,1.3036274,2051.5,2051.4,0.97482]
[1742961686436,1.3036274,2051.5,2051.4,2.38722]
[1742961686640,0.00731547,2051.6,2051.5,0.97477]
[1742961686833,0.00731547,2051.6,2051.5,2.38717]
[1742961687339,0.00731547,2051.6,2051.5,43.18717]
[1742961688442,0.00731547,2051.6,2051.5,46.39497]
[1742961689944,0.00731547,2051.6,2051.5,5.59497]
[1742961690936,0.00731547,2051.6,2051.5,4.18877]
[1742961691439,0.00731547,2051.6,2051.3,1.3732]
[1742961691741,1.31621547,2051.6,2051.4,0.9748]
[1742961691942,2.94065547,2051.6,2051.3,0.97484]
[1742961692329,1.365,2051.5,2051.4,0.97482]
[1742961694735,0.97484,2051.4,2051.2,1.95]
[1742961694940,1.3854,2051.3,2051.2,2.9107637]
[1742961695146,1.3854,2051.3,2051.2,0.9749]
[1742961696344,1.3854,2051.3,2051.2,2.3425]
[1742961697051,0.97492,2051.2,2051.0,0.975]
[1742961697233,1.3854,2051.1,2051.0,0.975]
[1742961697842,1.3854,2051.1,2051.0,2.2631]
[1742961704754,1.3854,2051.1,2051.0,2.9237]
[1742961704950,1.3555,2051.4,2051.3,0.97487]
[1742961705256,2.0392,2051.4,2051.3,0.97487]
[1742961705450,2.0392,2051.4,2051.3,41.77487]
[1742961706053,2.0392,2051.4,2051.2,2.38439]
[1742961706255,1.3555,2051.3,2051.2,2.38439]
[1742961706551,1.3555,2051.3,2050.9,3.2078]
[1742961706746,1.3555,2051.3,2051.1,0.97494]
[1742961707055,1.3555,2051.3,2051.1,0.97495]
[1742961707250,1.3555,2051.3,2051.0,42.1075]
[1742961707251,2.33037,2051.3,2051.0,42.1075]
[1742961707559,2.3304,2051.3,2051.0,42.1075]
[1742961707849,1.2999,2051.2,2051.0,42.1075]
[1742961708157,1.9845,2051.2,2051.0,43.08251]
[1742961708643,1.2999,2051.1,2051.0,43.08251]
[1742961710350,1.2999,2051.1,2051.0,42.1075]
[1742961710557,1.2999,2051.1,2051.0,43.08251]
[1742961710850,2.27486,2051.1,2050.9,3.2078]
[1742961711048,2.91606,2051.1,2050.9,4.6019]
[1742961711239,2.38291,2051.0,2050.9,4.6019]
[1742961711445,2.38291,2051.0,2050.9,3.2078]
[1742961711959,0.97506,2050.9,2050.8,4.1303]
[1742961712152,2.38296,2050.9,2050.8,4.1303]
[1742961712352,2.38296,2050.9,2050.8,3.0856]
[1742961715250,2.38296,2050.9,2050.8,3.2156]
[1742961718755,0.97511,2050.8,2050.7,0.1787]
[1742961719058,0.97515,2050.7,2050.6,0.00731547]
[1742961719251,0.97539,2050.3,2050.1,2.25751]
[1742961719447,2.43804,2050.6,2050.1,2.25751]
[1742961719448,0.97539,2050.2,2050.1,41.77541]
[1742961719648,1.67579,2050.2,2050.1,41.77541]
[1742961719852,1.67579,2050.2,2050.0,5.2487]
[1742961720054,1.67579,2050.2,2050.0,6.22416]
[1742961720361,0.97544,2050.1,2050.0,4.6041]
[1742961720956,1.67583,2050.2,2050.0,5.3393]
[1742961722958,1.2751,2050.1,2050.0,6.31479]
[1742961723154,1.2751,2050.1,2050.0,4.91849]
[1742961723358,1.2751,2050.1,2050.0,3.943]
[1742961724461,1.2751,2050.1,2050.0,4.91849]
[1742961724758,1.2751,2050.1,2050.0,3.943]
[1742961725261,1.2751,2050.1,2050.0,4.91849]
[1742961727963,0.00731547,2050.3,2050.2,0.97539]
[1742961728158,1.31651547,2050.3,2050.1,1.62741]
[1742961728363,2.29185547,2050.3,2050.2,0.7049]
[1742961728758,2.29185547,2050.3,2050.2,40.8]
[1742961729167,2.29185547,2050.3,2050.1,1.62741]
[1742961729168,1.31651547,2050.3,2050.1,1.62742]
[1742961729466,1.3092,2050.2,2050.1,1.62742]
[1742961729667,1.3092,2050.2,2050.1,42.42742]
[1742961729865,1.3092,2050.2,2050.1,41.452]
[1742961730067,1.3092,2050.2,2050.1,42.42744]
[1742961731168,1.3092,2050.2,2050.1,41.452]
[1742961731568,1.3092,2050.2,2050.1,42.42744]
[1742961733983,1.3092,2050.2,2050.1,43.83994]
[1742961734782,1.3092,2050.2,2050.1,44.57504]
[1742961734977,2.28459,2050.2,2050.1,2.7996]
[1742961735283,3.66789,2050.2,2050.1,0.7351]
[1742961738678,2.28459,2050.2,2050.1,2.7389]
[1742961740092,2.94359,2050.2,2050.1,0.7351]
[1742961747587,2.94359,2050.2,2050.1,2.1152]
[1742961748086,2.94359,2050.2,2050.1,3.09064]
[1742961748292,2.28459,2050.2,2050.1,1.3801]
[1742961752597,0.97544,2050.1,2050.0,0.643]
[1742961752798,2.25514,2050.1,2050.0,0.643]
[1742961753205,2.25514,2050.1,2050.0,1.9338]
[1742961753500,2.25514,2050.1,2049.9,0.00731547]
[1742961753501,0.97549,2050.0,2049.9,0.00731547]
[1742961753688,5.46299,2050.0,2049.9,0.00731547]
[1742961753892,6.14499,2050.0,2049.9,0.00731547]
[1742961758203,2.93719,2050.0,2049.9,0.00731547]
[1742961758404,6.14499,2050.0,2049.9,0.00731547]
[1742961758701,4.4875,2050.0,2049.9,1.38321547]
[1742961759201,1.2797,2050.0,2049.9,1.38321547]
[1742961760099,6.41011547,2050.3,2049.9,1.38321547]
[1742961760303,0.97545,2050.1,2049.9,2.35871547]
[1742961760504,0.97545,2050.1,2050.0,1.3759]
[1742961763503,2.36045,2050.1,2050.0,1.3759]
[1742961765004,0.97549,2050.0,2049.9,0.00731547]
[1742961765199,5.53169,2050.0,2049.9,0.00731547]
[1742961765600,5.53169,2050.0,2049.9,1.28791547]
[1742961768601,4.5562,2050.0,2049.9,1.28791547]
[1742961768909,4.5562,2050.0,2049.9,2.26345547]
[1742961769308,5.53169,2050.0,2049.9,1.28791547]
[1742961769609,4.5562,2050.0,2049.9,1.28791547]
[1742961769802,5.53169,2050.0,2049.9,1.28791547]
[1742961771202,4.5562,2050.0,2049.9,1.28791547]
[1742961771509,5.53169,2050.0,2049.9,1.28791547]
[1742961772209,2.32389,2050.0,2049.9,1.28791547]
[1742961773807,1.3484,2050.0,2049.9,2.26345547]
[1742961774210,2.32389,2050.0,2049.9,2.26345547]
[1742961774507,1.3484,2050.0,2049.9,2.26345547]
[1742961774903,2.32389,2050.0,2049.9,1.28791547]
[1742961775515,1.3484,2050.0,2049.9,2.26345547]
[1742961776408,2.32389,2050.0,2049.9,1.28791547]
[1742961776603,1.3484,2050.0,2049.9,2.26345547]
[1742961776809,2.32389,2050.0,2049.9,1.28791547]
[1742961777008,2.32389,2050.0,2049.9,2.26345547]
[1742961777503,0.00731547,2050.3,2050.2,0.97539]
[1742961777812,0.98268547,2050.3,2050.1,0.97542]
[1742961778013,0.98268547,2050.3,2050.2,0.6952]
[1742961778212,0.98268547,2050.3,2050.2,1.3536]
[1742961778913,0.97544,2050.1,2050.0,1.3444]
[1742961779109,0.97544,2050.1,2050.0,3.68529]
[1742961779312,0.97542,2050.2,2050.0,3.68529]
[1742961779511,0.97542,2050.2,2050.1,1.3444]
[1742961780707,0.97542,2050.2,2050.1,2.31984]
[1742961780908,0.00731547,2050.3,2050.2,0.97539]
[1742961781115,0.00731547,2050.3,2050.2,2.26709]
[1742961781713,0.98265547,2050.3,2050.2,2.26709]
[1742961782704,0.98265547,2050.3,2050.2,1.2917]
[1742961782909,0.98265547,2050.3,2049.9,3.21511547]
[1742961782910,0.97549,2050.0,2049.9,0.98281547]
[1742961783517,0.97549,2050.0,2049.9,2.38061547]
[1742961784118,0.97549,2050.0,2049.9,1.40511547]
[1742961784313,0.97549,2050.0,2049.9,2.38065547]
[1742961785712,0.97549,2050.0,2049.9,1.40511547]
[1742961785913,0.97549,2050.0,2049.9,2.38065547]
[1742961786113,0.97549,2050.0,2049.9,1.40511547]
[1742961787916,0.97549,2050.0,2049.9,0.00731547]
[1742961791116,4.18329,2050.0,2049.9,0.00731547]
[1742961794328,5.53929,2050.0,2049.9,0.00731547]
[1742961796221,2.33149,2050.0,2049.9,0.00731547]
[1742961796425,5.53929,2050.0,2049.9,0.00731547]
[1742961799230,5.53929,2050.0,2049.9,1.31941547]
[1742961801434,5.53929,2050.0,2049.9,0.00731547]
[1742961801729,3.21511547,2050.3,2050.2,0.97539]
[1742961802126,3.21511547,2050.3,2050.2,41.77539]
[1742961802431,3.2078,2050.6,2050.5,0.97525]
[1742961802633,2.27415,2050.7,2050.6,0.97516]
[1742961803933,1.299,2050.7,2050.6,0.97516]
[1742961804837,1.299,2050.7,2050.6,4.18296]
[1742961805032,0.9749,2051.3,2050.8,2.43769]
[1742961805227,1.3892,2051.2,2051.1,0.97496]
[1742961805829,4.18262,2051.4,2051.2,0.97489]
[1742961806032,5.57182,2051.4,2051.3,0.6903]
[1742961806227,5.57182,2051.4,2051.3,2.01]
[1742961806728,5.57182,2051.4,2051.3,0.6903]
[1742961807432,5.57182,2051.4,2051.3,2.0616]
[1742961808125,4.597,2051.4,2051.3,3.03647]
[1742961808527,1.3892,2051.4,2051.3,3.03647]
[1742961810030,1.3892,2051.4,2051.3,2.0616]
[1742961810230,2.36402,2051.4,2051.3,2.0616]
[1742961810933,1.3892,2051.4,2051.3,2.0616]
[1742961811134,2.36402,2051.4,2051.3,2.0616]
[1742961811436,1.3892,2051.4,2051.3,3.03647]
[1742961812535,2.36402,2051.4,2051.3,2.0616]
[1742961812737,2.36402,2051.4,2051.3,0.6903]
[1742961813235,2.36402,2051.4,2051.3,2.1003]
[1742961813829,1.3892,2051.4,2051.3,2.1003]
[1742961814029,1.3892,2051.4,2051.3,3.07517]
[1742961814632,2.36402,2051.4,2051.3,2.1003]
[1742961814828,1.3892,2051.4,2051.3,3.07517]
[1742961818645,0.00731547,2051.5,2051.4,0.97482]
[1742961818846,1.31767917,2051.6,2051.5,0.97477]
[1742961819038,1.31767917,2051.6,2051.5,2.26167]
[1742961819545,1.31767917,2051.6,2051.5,1.2869]
[1742961819546,2.29240917,2051.6,2051.5,1.2869]
[1742961819748,2.29240917,2051.6,2051.4,1.6546]
[1742961819944,0.97473,2051.6,2051.4,2.9603]
[1742961820338,0.97473,2051.6,2051.5,0.97477]
[1742961820738,3.8751,2051.7,2051.4,1.9855]
[1742961820947,0.97474,2051.6,2051.5,0.97476]
[1742961821243,0.97474,2051.6,2051.5,2.28046]
[1742961821946,2.34954,2051.6,2051.5,2.28046]
[1742961822150,1.3748,2051.6,2051.5,2.28046]
[1742961822341,2.34953,2051.6,2051.5,2.28046]
[1742961822541,1.3748,2051.6,2051.5,2.28046]
[1742961824850,2.34953,2051.6,2051.5,2.28046]
[1742961825036,1.3748,2051.6,2051.5,2.28046]
[1742961825352,2.34953,2051.6,2051.5,2.28046]
[1742961825642,1.3748,2051.6,2051.5,2.28046]
[1742961831858,2.34953,2051.6,2051.5,2.28046]
[1742961832048,1.3748,2051.6,2051.5,2.28046]
[1742961832243,2.34953,2051.6,2051.5,2.28046]
[1742961832547,1.3748,2051.6,2051.5,2.28046]
[1742961835948,2.34957,2051.6,2051.4,0.6798]
[1742961836253,2.34957,2051.6,2051.5,0.97477]
[1742961836254,1.3748,2051.6,2051.5,0.97477]
[1742961836846,2.34953,2051.6,2051.5,1.3391]
[1742961837052,2.99063,2051.6,2051.5,1.3391]
[1742961837252,2.99063,2051.6,2051.5,2.31387]
[1742961837661,2.0159,2051.6,2051.5,4.26357]
[1742961837863,2.99063,2051.6,2051.5,4.26357]
[1742961838262,2.0159,2051.6,2051.5,4.26357]
[1742961842455,2.99063,2051.6,2051.5,4.26357]
[1742961842656,2.99063,2051.6,2051.5,2.92447]
[1742961843364,1.3748,2051.6,2051.5,2.92447]
[1742961843669,1.3748,2051.6,2051.5,4.33197]
[1742961843872,0.00731547,2051.8,2051.7,0.97468]
[1742961844057,1.38991547,2051.8,2051.7,0.97468]
[1742961844461,1.38991547,2051.8,2051.7,1.65618]
[1742961844660,1.38991547,2051.8,2051.7,2.95768]
[1742961844864,2.36454547,2051.8,2051.7,2.95768]
[1742961845060,2.36454547,2051.8,2051.7,1.983]
[1742961845260,3.06034547,2051.8,2051.7,2.27618]
[1742961845660,3.06034547,2051.8,2051.7,0.97468]
[1742961845862,2.08571547,2051.8,2051.6,1.71079]
[1742961846062,1.3826,2051.7,2051.6,1.71079]
[1742961846468,1.3826,2051.7,2051.6,3.01229]
[1742961852969,1.3826,2051.7,2051.6,0.7361]
[1742961852970,2.35728,2051.7,2051.6,0.7361]
[1742961853168,2.0599,2051.7,2051.6,1.71083]
[1742961853365,2.0599,2051.7,2051.6,3.10353]
[1742961853869,3.03458,2051.7,2051.6,1.71083]
[1742961854070,2.0599,2051.7,2051.6,1.71083]
[1742961854277,2.0599,2051.7,2051.6,3.10353]
[1742961854973,3.03458,2051.7,2051.6,0.7361]
[1742961855672,3.03458,2051.7,2051.6,1.71083]
[1742961855872,2.0599,2051.7,2051.6,1.71083]
[1742961857176,3.03458,2051.7,2051.6,1.71083]
[1742961858062,2.0599,2051.7,2051.6,1.71083]
[1742961858262,3.03458,2051.7,2051.6,1.71083]
[1742961858877,2.0599,2051.7,2051.6,1.71083]
[1742961860074,2.0599,2051.7,2051.6,3.66043]
[1742961860280,3.03458,2051.7,2051.6,3.66043]
[1742961861178,1.3826,2051.7,2051.6,3.66043]
[1742961863871,0.00731547,2051.8,2051.7,0.97468]
[1742961864077,0.00731547,2051.8,2051.7,3.68968]
[1742961864388,1.33551547,2051.8,2051.7,3.68968]
[1742961867374,2.31018547,2051.8,2051.6,3.66041]
[1742961867570,3.00418547,2051.8,2051.7,0.97468]
[1742961867775,2.02951547,2051.8,2051.7,0.97468]
[1742961867980,2.02951547,2051.8,2051.7,2.28278]
[1742961868771,2.02951547,2051.8,2051.6,3.66041]
[1742961868975,1.4063,2051.7,2051.6,3.66039]
[1742961873084,2.38098,2051.7,2051.6,3.66043]
[1742961873290,3.05738,2051.7,2051.6,3.66043]
[1742961873685,3.05738,2051.7,2051.6,2.6857]
[1742961875791,3.05738,2051.7,2051.6,3.66043]
[1742961875792,2.0827,2051.7,2051.6,3.66043]
[1742961875986,1.4063,2051.7,2051.6,3.66043]
[1742961878392,2.38098,2051.7,2051.6,3.66043]
[1742961878781,1.4063,2051.7,2051.6,3.66043]
[1742961879093,2.38098,2051.7,2051.6,2.6857]
[1742961879293,2.38098,2051.7,2051.6,3.66043]
[1742961879887,2.38098,2051.7,2051.6,2.6857]
[1742961880296,2.38098,2051.7,2051.6,3.66043]
[1742961883388,2.38098,2051.7,2051.6,2.6857]
[1742961884286,2.38098,2051.7,2051.6,3.66043]
[1742961885296,2.38098,2051.7,2051.6,2.6857]
[1742961889799,2.38098,2051.7,2051.6,3.66043]
[1742961890190,2.38098,2051.7,2051.6,2.6857]
[1742961890501,2.38098,2051.7,2051.6,3.66043]
[1742961890700,1.4063,2051.7,2051.6,3.66043]
[1742961890899,2.38098,2051.7,2051.6,3.66043]
[1742961891701,2.38098,2051.7,2051.6,4.33783]
[1742961894409,1.4063,2051.7,2051.6,4.33783]
[1742961894705,7.36978547,2051.8,2051.6,4.33783]
[1742961894706,3.21511547,2051.8,2051.7,0.97468]
[1742961894998,0.00731547,2051.8,2051.7,3.07338]
[1742961895201,1.28611547,2051.8,2051.7,3.07338]
[1742961895597,2.26074547,2051.8,2051.7,3.07338]
[1742961896005,1.28611547,2051.8,2051.7,3.07338]
[1742961897905,1.28611547,2051.8,2051.7,3.80918]
[1742961898092,2.26074547,2051.8,2051.7,3.80918]
[1742961898292,2.26074547,2051.8,2051.7,5.75878]
[1742961898497,1.28611547,2051.8,2051.7,5.75878]
[1742961898822,0.98194547,2051.8,2051.7,5.75878]
[1742961898999,2.32724547,2051.8,2051.7,5.75878]
[1742961899406,1.35261547,2051.8,2051.7,5.75878]
[1742961899801,2.32724547,2051.8,2051.7,5.75878]
[1742961900193,1.35261547,2051.8,2051.7,5.75878]
[1742961900999,2.32724547,2051.8,2051.7,4.7841]
[1742961901296,2.32724547,2051.8,2051.7,5.75878]
[1742961904305,1.35261547,2051.8,2051.7,5.75878]
[1742961905009,2.32724547,2051.8,2051.7,5.75878]
[1742961911703,5.25667764,2052.5,2051.7,5.75878]
[1742961911704,3.2078,2052.6,2051.7,64.4429]
[1742961911903,2.0319,2052.8,2052.7,0.9742]
[1742961912208,2.0319,2052.8,2052.6,0.97421]
[1742961912503,2.0319,2052.8,2052.0,3.179]
[1742961912504,0.97443,2052.3,2052.0,3.179]
[1742961912701,0.97437,2052.4,2052.2,0.6642]
[1742961912899,0.97437,2052.4,2052.3,0.97436]
[1742961913096,4.18215,2052.5,2052.4,0.97435]
[1742961913499,3.2078,2052.5,2052.4,0.97435]
[1742961914307,4.1821,2052.5,2052.4,0.97435]
[1742961914698,4.1821,2052.5,2052.4,2.92325]
[1742961915611,4.1821,2052.5,2052.4,1.9489]
[1742961916212,4.1821,2052.5,2052.4,2.92325]
[1742961916612,4.1821,2052.5,2052.4,1.9489]
[1742961921917,6.6821,2052.5,2052.4,1.94158453]
[1742961922213,0.97454,2052.0,2051.9,0.68391547]
[1742961922407,0.97454,2052.0,2051.9,1.65849547]
[1742961924119,2.26974,2052.0,2051.9,1.65849547]
[1742961924319,2.26974,2052.0,2051.9,2.39399547]
[1742961928322,1.2952,2052.0,2051.9,2.39399547]
[1742961929318,2.26974,2052.0,2051.9,2.39399547]
[1742961929817,2.26974,2052.0,2051.9,1.41941547]
[1742961930320,2.26974,2052.0,2051.9,2.69581547]
[1742961931823,2.26974,2052.0,2051.9,0.74281547]
[1742961932826,2.26974,2052.0,2051.9,1.71739547]
[1742961933020,2.26974,2052.0,2051.9,0.74281547]
[1742961933426,2.26974,2052.0,2051.9,2.03061547]
[1742961940450,2.26974,2052.0,2051.9,0.74281547]
[1742961940748,5.44874,2052.0,2051.9,0.74281547]
[1742961955155,8.65654,2052.0,2051.9,0.74281547]
[1742961956346,5.47754,2052.0,2051.9,0.74281547]
[1742961956750,5.47754,2052.0,2051.9,2.12131547]
[1742961963259,5.47754,2052.0,2051.9,0.74281547]
[1742961974264,5.47754,2052.0,2051.9,1.71739547]
[1742961974265,3.2078,2052.0,2051.9,1.71739547]
[1742961974566,3.2078,2052.0,2051.9,2.39349547]
[1742961975560,4.18234,2052.0,2051.9,2.39349547]
[1742961976062,1.3055,2052.2,2052.1,0.97449]
[1742961976567,1.3055,2052.2,2052.0,3.051]
[1742961976751,2.27994,2052.2,2052.1,1.385]
[1742961977449,0.97444,2052.2,2052.1,1.385]
[1742961977862,2.35424,2052.2,2052.1,1.385]
[1742961978255,2.35424,2052.2,2052.1,2.35949]
[1742961979261,3.2078,2052.6,2052.1,1.385]
[1742961979460,3.2078,2052.6,2052.4,0.97431]
[1742961979461,5.56188,2052.6,2052.4,0.97431]
[1742961979662,5.56188,2052.6,2052.5,2.6614]
[1742961981268,5.56188,2052.6,2052.5,1.9833]
[1742961982466,0.97438,2052.4,2052.2,1.64411]
[1742961982660,0.97438,2052.4,2052.3,2.0078]
[1742961982861,0.97438,2052.4,2052.3,2.98219]
[1742961985172,0.97438,2052.4,2052.3,2.0078]
[1742961990076,3.8528,2052.5,2052.1,0.7351]
[1742961990271,0.97439,2052.3,2052.2,1.3314]
[1742961992269,0.97439,2052.3,2052.2,2.30584]
[1742961992469,0.97438,2052.4,2052.2,3.00524]
[1742961992671,0.97438,2052.4,2052.3,1.3314]
[1742961994179,2.36158,2052.4,2052.3,1.3314]
[1742961996571,1.3872,2052.4,2052.3,2.30579]
[1742961997275,2.36155,2052.4,2052.3,2.30579]
[1742961998871,1.3872,2052.4,2052.3,2.30579]
[1742961999071,2.36155,2052.4,2052.3,2.30579]
[1742961999377,1.3872,2052.4,2052.3,2.30579]
[1742961999974,3.2078,2052.5,2052.4,0.97435]
[1742962000178,3.2078,2052.5,2052.4,2.25835]
[1742962000566,0.97422,2052.7,2052.6,0.9742]
[1742962000771,0.97425,2052.6,2052.5,3.60187]
[1742962000970,0.97425,2052.6,2052.5,2.6276]
[1742962001282,0.97425,2052.6,2052.5,1.9537]
[1742962001778,0.97425,2052.6,2052.5,2.928]
[1742962001979,2.30865,2052.6,2052.5,2.928]
[1742962002675,2.30865,2052.6,2052.5,1.9537]
[1742962002880,2.97505,2052.6,2052.5,1.9537]
[1742962003076,2.97505,2052.6,2052.5,2.928]
[1742962005380,2.97505,2052.6,2052.5,1.9537]
[1742962005779,2.97505,2052.6,2052.5,0.6697]
[1742962006081,0.9743,2052.5,2052.4,2.32301]
[1742962006284,2.3112,2052.5,2052.4,2.32301]
[1742962006982,2.3112,2052.5,2052.4,4.27191]
[1742962008086,2.3112,2052.5,2052.4,1.9489]
[1742962012490,2.3112,2052.5,2052.4,2.6837]
[1742962013892,2.3112,2052.5,2052.4,4.0704]
[1742962014090,2.3112,2052.5,2052.4,2.6837]
[1742962015291,2.3112,2052.5,2052.4,3.9822]
[1742962017689,2.3112,2052.5,2052.4,2.6837]
[1742962018292,2.3112,2052.5,2052.4,4.0564]
[1742962019398,3.2078,2052.6,2052.4,4.0564]
[1742962019693,3.2078,2052.9,2052.8,0.97416]
[1742962020492,2.38125,2053.1,2053.0,0.97406]
[1742962021986,0.97409,2053.0,2052.9,0.97406]
[1742962022191,2.33739,2053.0,2052.9,0.97406]
[1742962022994,2.33739,2053.0,2052.9,2.92246]
[1742962023198,2.33739,2053.0,2052.9,1.9484]
[1742962025601,2.33739,2053.0,2052.9,2.92251]
[1742962027602,2.33739,2053.0,2052.9,1.9484]
[1742962028697,2.33739,2053.0,2052.9,2.92251]
[1742962029004,2.33739,2053.0,2052.9,1.9484]
[1742962029402,3.01859,2053.0,2052.9,1.9484]
[1742962029808,3.72519,2053.0,2052.9,1.9484]
[1742962034312,3.72519,2053.0,2052.9,3.2663]
[1742962035109,3.72519,2053.0,2052.9,4.24041]
[1742962035810,3.72519,2053.0,2052.9,3.2663]
[1742962036808,3.04399,2053.0,2052.9,4.24041]
[1742962037601,3.04399,2053.0,2052.9,3.2663]
[1742962038802,3.04399,2053.0,2052.9,4.24041]
[1742962040210,2.33739,2053.0,2052.9,4.24041]
[1742962040508,2.33739,2053.0,2052.9,4.97491]
[1742962041110,1.3633,2053.0,2052.9,4.97491]
[1742962041306,2.33736,2053.0,2052.9,4.97491]
[1742962042902,1.3633,2053.0,2052.9,4.97491]
[1742962043203,2.33736,2053.0,2052.9,4.97491]
[1742962044219,0.97406,2053.1,2053.0,0.97404]
[1742962044402,0.97406,2053.0,2052.9,3.65697]
[1742962044599,0.97406,2053.0,2052.9,0.7345]
[1742962044908,0.97406,2053.0,2052.9,1.70861]
[1742962045311,2.35466,2053.0,2052.9,3.04111]
[1742962048012,2.35466,2053.0,2052.9,4.98951]
[1742962054316,2.35466,2053.0,2052.9,4.0154]
[1742962054517,2.35466,2053.0,2052.9,4.98951]
[1742962054719,2.35466,2053.0,2052.9,2.6829]
[1742962055419,2.35466,2053.0,2052.9,4.0497]
[1742962057913,2.35466,2053.0,2052.9,5.02381]
[1742962067022,2.35466,2053.0,2052.9,4.0497]
[1742962067527,2.35466,2053.0,2052.9,5.02381]
[1742962068125,3.2078,2053.2,2053.1,0.97401]
[1742962068333,2.29357,2053.2,2053.1,0.97401]
[1742962068521,1.3196,2053.2,2053.1,0.97401]
[1742962068722,1.3196,2053.2,2053.1,43.15941]
[1742962070429,2.29357,2053.2,2053.1,2.35941]
[1742962070628,0.97393,2053.3,2053.2,0.97394]
[1742962070827,1.3007,2053.3,2053.2,41.77394]
[1742962071428,1.3007,2053.3,2053.2,0.97394]
[1742962071820,1.3007,2053.3,2053.0,41.4561]
[1742962072022,0.97401,2053.1,2053.0,41.4561]
[1742962072227,0.974,2053.2,2053.1,0.97401]
[1742962072932,0.97401,2053.1,2053.0,2.36442]
[1742962073242,3.2078,2054.2,2053.3,2.43481]
[1742962073529,1.3921,2053.8,2053.4,3.8531]
[1742962073731,2.28715,2053.7,2053.5,0.97381]
[1742962073927,1.3921,2053.6,2053.5,0.97383]
[1742962074324,1.3921,2053.6,2053.5,2.92163]
[1742962079937,2.36588,2053.6,2053.5,2.92163]
[1742962080141,5.57368,2053.6,2053.5,2.92163]
[1742962080529,5.57368,2053.6,2053.5,1.9478]
[1742962080831,5.57368,2053.6,2053.5,2.92163]
[1742962081030,5.57368,2053.6,2053.5,1.9478]
[1742962081532,5.57368,2053.6,2053.5,2.92163]
[1742962081834,5.57368,2053.6,2053.5,1.9478]
[1742962084442,4.5999,2053.6,2053.5,1.9478]
[1742962084644,4.5999,2053.6,2053.5,2.92163]
[1742962084937,5.57368,2053.6,2053.5,1.9478]
[1742962085142,3.2078,2053.6,2053.5,2.92163]
[1742962085934,3.2078,2053.6,2053.5,4.94863]
[1742962086943,1.3095,2053.7,2053.6,0.97378]
[1742962087141,1.3095,2053.7,2053.6,2.26298]
[1742962087644,3.2078,2053.9,2053.8,0.97368]
[1742962088341,3.91,2053.9,2053.8,0.97368]
[1742962088544,4.61,2053.9,2053.8,0.97368]
[1742962089147,5.8928,2053.9,2053.8,2.26288]
[1742962091045,6.86644,2053.9,2053.8,0.97368]
[1742962091646,5.8928,2053.9,2053.8,0.97368]
[1742962091844,6.86644,2053.9,2053.8,2.38598]
[1742962092744,5.8928,2053.9,2053.8,2.38598]
[1742962092944,2.685,2053.9,2053.8,2.38598]
[1742962093136,2.685,2053.9,2053.8,4.33358]
[1742962094638,1.2828,2053.9,2053.8,4.33358]
[1742962095644,2.25644,2053.9,2053.8,4.33358]
[1742962096547,1.2828,2053.9,2053.8,4.33358]
[1742962098940,2.25644,2053.9,2053.8,4.33358]
[1742962099136,1.2828,2053.9,2053.8,4.33358]
[1742962101851,2.25644,2053.9,2053.8,4.33358]